Workbook

Sheet POOL
A1: POOL Kalkulator PRO | F1: © WUNDERWORKS | L1: =IF(I2>0,IF(VLOOKUP(POOL!I2,#REF!,9,FALSE)=0,"",VLOOKUP(POOL!I2,#REF!,9,FALSE)),"") ->  | M1: =IF(AND(M3<>"",N3<>"",O3<>""),SUBSTITUTE(CONCATENATE("POOL-SET-",I2,"-",L3,"-",M3,"x",N3,"x",O3,"-",P3,"-",SUBSTITUTE(Q3," ",""),SUBSTITUTE(Q4," ",""),"-",S3,".xlsm"),"-.xlsm",".xlsm"),"") ->  | T1: =IF(I2>0, ROUND((VLOOKUP(POOL!I2,#REF!,11,FALSE) - J3),0), "" ) -> 
C2: POOLDOKTOR Handels GmbH
C3: Kotzinastrasse 15 - 4030 Linz - AT
C4: Telefon: + 43 732 38 22 22
C5: Email: office@pooldoktor.at
A7: Datum: | B7: =TODAY() -> 2023-09-21 | C7: Angebot gültig bis: | F7: =B7+30 -> 2023-10-21
F8: (Angebot freibleibend - Datum und Preise nur gültig mit aktuelle Inhalten bei PDF oder Ausdruck)
A9: Ihre Anschrift - Kundendaten
B10: bitte vollständig ausfüllen:
A11: Rechnungsadresse | C11: Lieferadresse? | E11: falls abweichend
A12: Titel
A13: Name
A14: Straße
A15: PLZ
A16: Ort | I16: Seit über 17 Jahren sind wir spezialisiert auf Beratung & Verkauf von Styroporpools!
A17: Land | B17: Österreich | I17: Über 11.000 Styroporpools wurden von unseren Kunden erfolgreich erstellt!
A18: Telefon | I18: >> ERFAHRUNGSBERICHTE & FOTOS unserer Styroporpool Kunden
A19: Email | I19: >> REFERENZEN - wer hat einen Styroporpool gebaut?
C20: =IF($C$22="","",$C$22/100) -> 8 | D20: =IF($D$22="","",$D$22/100) -> 4
A21: Fragen bzw. Angaben zu Ihrem Pool | C21: Länge? | D21: Breite? | E21: Form? | I21: Warum bei Pooldoktor kaufen? Wir beraten Sie gerne objektiv:
A22: Bitte geben Sie das INNENMASS ihres Schwimmbeckens an (in cm): | C22: 800 | D22: 400 | E22: ECKIG | I22: >> Wie plane ich einen Pool?
A23: Wie TIEF soll ihr Pool werden? (in cm): | C23: 150 | D23: cm | I23: >> SET Unterschiede in der Ausstattung im Vergleich zum Mitbewerb
A25: Folie:
A26: Soll bei ihnen 1.5mm Gewebefolie durch eine Fachfirma verlegt werden? Oder einen 0,8mm Foliensack selber einhängen?
A27: Achtung! Stufen sind nur bei einem Pool mit Gewebefolie möglich! Fertigtreppe hingegen nur bei einem Pool mit Foliensack!
A28: Bitte Folie wählen - Gewebefolie verlegt oder Foliensack selber einhängen? | C28: GEWEBEFOLIE
A30: =IF(C28="GEWEBEFOLIE","Hat ihr Pool eine RÖMISCHE Treppe ? Bitte wählen sie den Radius:","") -> Hat ihr Pool eine RÖMISCHE Treppe ? Bitte wählen sie den Radius:
A31: =IF(C28="GEWEBEFOLIE","Hat ihr Pool eine AUSSENLIEGENDE GERADE Treppe? Innenmass in cm ein:","") -> Hat ihr Pool eine AUSSENLIEGENDE GERADE Treppe? Innenmass in cm ein: | E31: =IF(C28="GEWEBEFOLIE","(Länge x Breite in cm)","") -> (Länge x Breite in cm)
A34: Foliensack 0,8 mm / zum Selber Einhängen | I34: ↑nach oben
A35: Innenhüllen - Standardgrössen (nur bei 6x3, 7x3.5, 8x4, 9x4, 10x5 mit 150cm Tiefe möglich!) | O35: >> DETAILS Einhängefolien
B36: Modell 3 - runde Ecke - mit Keilbiese:
A37: =IF(AND($C$22=600,$D$22=300,$C$23=150,$E$22="ECKIG"),25004997, IF(AND($C$22=700,$D$22=350,$C$23=150,$E$22="ECKIG"),25004893, IF(AND($C$22=800,$D$22=400,$C$23=150,$E$22="ECKIG"),25004999, IF(AND($C$22=900,$D$22=400,$C$23=150,$E$22="ECKIG"),25004000, IF(AND($C$22=1000,$D$22=500,$C$23=150,$E$22="ECKIG"),25004002, "" ) ) ) ) ) -> 25004999 | B37: =IFERROR(VLOOKUP(A37,PREISE!$A:$B,2,FALSE),"Kein Standardmass!") -> INNENHÜLLE Eckig 8,00x4,00x1,50m, PVC 0,8 mm, BLAU, Mod.3 | C37: =IF(SUM(C51:C56)>0,"",IF(AND(SUM(C38:C41)=0,A37<>"",C28="FOLIENSACK"),1,"")) ->  | D37: Stk. | E37: =IFERROR(VLOOKUP(A37,PREISE!$A:$C,3,FALSE),"") -> 790.83 | F37: =IF(C37="","",C37*E37) ->  | G37: =IF(F37="","",CONCATENATE(C37,"*",A37)) ->  | O37: Info - zu Lieferzeiten
A38: =IF(AND($C$22=600,$D$22=300,$C$23=150,$E$22="ECKIG"),25003997, IF(AND($C$22=700,$D$22=350,$C$23=150,$E$22="ECKIG"),25006893, IF(AND($C$22=800,$D$22=400,$C$23=150,$E$22="ECKIG"),25002999, IF(AND($C$22=900,$D$22=400,$C$23=150,$E$22="ECKIG"),25003000, IF(AND($C$22=1000,$D$22=500,$C$23=150,$E$22="ECKIG"),25009002, "" ) ) ) ) ) -> 25002999 | B38: =IFERROR(VLOOKUP(A38,PREISE!$A:$B,2,FALSE),"") -> INNENHÜLLE Eckig 8,00x4,00x1,50m, PVC 0,8 mm, SAND, Mod.3 | D38: Stk. | E38: =IFERROR(VLOOKUP(A38,PREISE!$A:$C,3,FALSE),"") -> 874.17 | O38: Standardgrössen in div. Farben sind meist Lagerware!
A39: =IF(AND($C$22=600,$D$22=300,$C$23=150,$E$22="ECKIG"),24950082, IF(AND($C$22=700,$D$22=350,$C$23=150,$E$22="ECKIG"),24950081, IF(AND($C$22=800,$D$22=400,$C$23=150,$E$22="ECKIG"),24950080, "" ) ) ) -> 24950080 | B39: =IFERROR(VLOOKUP(A39,PREISE!$A:$B,2,FALSE),"") -> Innenhülle 0,8mm - ECKIG - 800 x 400 x 150 - Mod 3 - Farbe GRAU | D39: Stk. | E39: =IFERROR(VLOOKUP(A39,PREISE!$A:$C,3,FALSE),"") -> 832.5 | O39: Sonderanfertigungen hingegen haben sehr lange Lieferzeiten!
A40: =IF(AND($C$22=600,$D$22=300,$C$23=150,$E$22="ECKIG"),24950052, IF(AND($C$22=700,$D$22=350,$C$23=150,$E$22="ECKIG"),24950051, IF(AND($C$22=800,$D$22=400,$C$23=150,$E$22="ECKIG"),24950050, "" ) ) ) -> 24950050 | B40: =IFERROR(VLOOKUP(A40,PREISE!$A:$B,2,FALSE),"") -> Innenhülle 0,8mm - ECKIG - 800 x 400 x 150 - Mod 3 - Farbe WEISS | D40: Stk. | E40: =IFERROR(VLOOKUP(A40,PREISE!$A:$C,3,FALSE),"") -> 832.5 | F40: =IF(C40="","",C40*E40) ->  | O40: (im Jahr 2021 zB. 12 - 20 Wochen)
A41: =IF(AND($C$22=600,$D$22=300,$C$23=150,$E$22="ECKIG"),24950062, IF(AND($C$22=700,$D$22=350,$C$23=150,$E$22="ECKIG"),24950061, IF(AND($C$22=800,$D$22=400,$C$23=150,$E$22="ECKIG"),24950060, "" ) ) ) -> 24950060 | B41: =IFERROR(VLOOKUP(A41,PREISE!$A:$B,2,FALSE),"") -> Innenhülle 0,8mm - ECKIG - 800 x 400 x 150 - Mod 3 - Farbe HELLBLAU | D41: Stk. | E41: =IFERROR(VLOOKUP(A41,PREISE!$A:$C,3,FALSE),"") -> 832.5
B42: =IF(AND(C28="FOLIENSACK",SUM(C37:C41)=0),"Bitte tragen sie die m2 der gewünschen Sonderanfertigung ein!","") ->  | O42: Es ist daher ratsam sich beim Poolbau an Standardgrössen zu orientieren!
A43: Innenhüllen - Sonderanfertigungen in verschiedenen Farben (Mod 1 o. 3) | D43: =IF(AND(C22<>"",D22<>"",C23<>""),IF(E22="ECKIG",ROUNDUP((2*C22/100+2*D22/100)*1.5 + C22*D22/10000,0), IF(OR(E22="RUND",E22="OVAL",E22="ACHTFORM"), ROUNDUP( (( (C22-D22)*2/100) + D22*3.14/100 ) * 1.5 + C22*D22/10000, 0), "" ) ) ) -> 68 | E43: m2
B44: Modell 3 - runde Ecke - mit Keilbiese ODER Einhängebiese (auch bei OVAL, RUND möglich!!!): | O44: Welche Farbe? Das ist Geschmacksache! | S44: >> Beispiele Poolfarben
A45: 25002030 | B45: =IFERROR(VLOOKUP(A45,PREISE!$A:$B,2,FALSE),"Kein Standardmass!") -> HIT- Folie 0.80 mm, Sonderanfertigung - BLAU, per m2, Mod. 3 | C45: =IF(AND(C28="FOLIENSACK",OR(E22="OVAL",E22="RUND",E22="ACHTFORM"),SUM(F37:F41)=0),D43, IF(AND(C28="FOLIENSACK",E22="ECKIG",SUM(F37:F41)=0),D43,"") ) ->  | D45: m2 | E45: =IFERROR(VLOOKUP(A45,PREISE!$A:$C,3,FALSE),"") -> 19.08 | F45: =IF(C45="","",C45*E45) ->  | G45: =IF(F45="","",CONCATENATE(C45,"*",A45)) ->  | O45: Aber je heller desto mehr sieht man den Schmutz,
A46: 25002055 | B46: =IFERROR(VLOOKUP(A46,PREISE!$A:$B,2,FALSE),"") -> HIT- Folie 0.80 mm, Sonderanfertigung - SAND, per m2, Mod. 3 | D46: m2 | E46: =IFERROR(VLOOKUP(A46,PREISE!$A:$C,3,FALSE),"") -> 19.08 | O46: je dunkler desto mehr Ausbleichung durch Desinfektion / Sonne!
A47: 25002075 | B47: =IFERROR(VLOOKUP(A47,PREISE!$A:$B,2,FALSE),"") -> HIT- Folie 0.80 mm, Sonderanfertigung - GRAU, per m2, Mod. 3 | D47: m2 | E47: =IFERROR(VLOOKUP(A47,PREISE!$A:$C,3,FALSE),"") -> 19.08
A48: 25002036 | B48: =IFERROR(VLOOKUP(A48,PREISE!$A:$B,2,FALSE),"") -> HIT- Folie 0.80 mm, Sonderanfertigung - WEISS, per m2, Mod. 3 | D48: m2 | E48: =IFERROR(VLOOKUP(A48,PREISE!$A:$C,3,FALSE),"") -> 19.08 | F48: =IF(C48="","",C48*E48) -> 
A49: 25002035 | B49: =IFERROR(VLOOKUP(A49,PREISE!$A:$B,2,FALSE),"") -> HIT- Folie 0.80 mm, Sonderanfertigung - HELLBLAU, per m2, Mod. 3 | D49: m2 | E49: =IFERROR(VLOOKUP(A49,PREISE!$A:$C,3,FALSE),"") -> 19.08 | L49: >> Montage Folie
B50: Modell 1 - geschweisste Ecke - mit Keilbiese (nur ECKIG möglich !!!):
A51: 25006030 | B51: =IFERROR(VLOOKUP(A51,PREISE!$A:$B,2,FALSE),"Kein Standardmass!") -> HIT- Folie 0.80 mm, Sonderanfertigung - BLAU, per m2, Mod. 1 | D51: m2 | E51: =IFERROR(VLOOKUP(A51,PREISE!$A:$C,3,FALSE),"") -> 22.42 | F51: =IF(C51="","",C51*E51) -> 
A52: 25008055 | B52: =IFERROR(VLOOKUP(A52,PREISE!$A:$B,2,FALSE),"") -> HIT- Folie 0.80 mm, Sonderanfertigung - SAND, per m2, Mod. 1 | D52: m2 | E52: =IFERROR(VLOOKUP(A52,PREISE!$A:$C,3,FALSE),"") -> 22.42
A53: 25008075 | B53: =IFERROR(VLOOKUP(A53,PREISE!$A:$B,2,FALSE),"") -> HIT- Folie 0.80 mm, Sonderanfertigung - GRAU, per m2, Mod. 1 | D53: m2 | E53: =IFERROR(VLOOKUP(A53,PREISE!$A:$C,3,FALSE),"") -> 22.42
A54: 25006036 | B54: =IFERROR(VLOOKUP(A54,PREISE!$A:$B,2,FALSE),"") -> HIT- Folie 0.80 mm, Sonderanfertigung - WEISS, per m2, Mod. 1 | D54: m2 | E54: =IFERROR(VLOOKUP(A54,PREISE!$A:$C,3,FALSE),"") -> 22.42
A55: 25006035 | B55: =IFERROR(VLOOKUP(A55,PREISE!$A:$B,2,FALSE),"") -> HIT- Folie 0.80 mm, Sonderanfertigung - HELLBLAU, per m2, Mod. 1 | D55: m2 | E55: =IFERROR(VLOOKUP(A55,PREISE!$A:$C,3,FALSE),"") -> 22.42 | F55: =IF(C55="","",C55*E55) -> 
A56: 25006036 | B56: =IFERROR(VLOOKUP(A56,PREISE!$A:$B,2,FALSE),"") -> HIT- Folie 0.80 mm, Sonderanfertigung - WEISS, per m2, Mod. 1 | D56: m2 | E56: =IFERROR(VLOOKUP(A56,PREISE!$A:$C,3,FALSE),"") -> 22.42 | F56: =IF(C56="","",C56*E56) ->  | I56: Modell 3 - Runde Ecken: | O56: Modell 1 - Ausgebildete Ecke:
B57: Versandkosten - Folie Sonderanfertigung AB Werk: | I57: Die Folie hat Folienprofile mit „RUNDUNG“ in der Ecke. | O57: Jede Ecke hat eine eigene senkrechte Schweißnaht.
A58: 81008160 | B58: =IFERROR(VLOOKUP(A58,PREISE!$A:$B,2,FALSE),"") -> AT+ DE Versandkosten POOL - FOLIE | C58: =IF(OR(SUM(C45:C56)>0,SUM(C37:C41)>0),1,"") ->  | D58: Stk. | E58: =IFERROR(VLOOKUP(A58,PREISE!$A:$C,3,FALSE),"") -> 95 | I58: Die vertikale Fläche wird mit einer Bahn und nur 1 Schweißnaht produziert | O58: Folienprofile sind 90° Im Winkel montiert.
I59: Wir empfehlen Modell 3 - da preiswerter in der Fertigung und EINFACHER zu montieren!
A60: Zubehör für Innenhüllen | D60: =IF(E22="ECKIG", CEILING(2*C22/100+2*D22/100,2), IF(OR(E22="RUND",E22="OVAL"), CEILING(ROUNDUP( (( (C22-D22)*2/100) + D22*3.14/100 ), 0),2), "" ) ) -> 24 | E60: lfm
A61: 25003001 | B61: =IFERROR(VLOOKUP(A61,PREISE!$A:$B,2,FALSE),"Kein Standardmass!") -> Vlies weiss 300 gr./m2 (50 lfm/ H165 =82,5m2) | C61: =IF(AND(C28="FOLIENSACK",D43>0,D43<=70,SUM(C37:C56)>0),1, IF(AND(C28="FOLIENSACK",D43>70,D43<=140,SUM(C37:C56)>0),2, "" ) ) ->  | D61: Stk. | E61: =IFERROR(VLOOKUP(A61,PREISE!$A:$C,3,FALSE),"") -> 249.17 | F61: =IF(C61="","",C61*E61) ->  | G61: =IF(F61="","",CONCATENATE(C61,"*",A61)) -> 
A62: 25006813 | B62: =IFERROR(VLOOKUP(A62,PREISE!$A:$B,2,FALSE),"") -> Desinfektionsmittel für den Untergrund 1000 ml - (Vlies) | C62: =IF(AND(C28="FOLIENSACK",D43>0,D43<=70,SUM(C37:C56)>0),1, IF(AND(C28="FOLIENSACK",D43>70,D43<=140,SUM(C37:C56)>0),2, "" ) ) ->  | D62: Stk. | E62: =IFERROR(VLOOKUP(A62,PREISE!$A:$C,3,FALSE),"") -> 42.75 | F62: =IF(C62="","",C62*E62) -> 
A63: 25002190 | B63: =IFERROR(VLOOKUP(A63,PREISE!$A:$B,2,FALSE),"") -> Folieneinhängeprofil - Breite 105 mm, L= 200 cm | C63: =IF(AND(C28="FOLIENSACK",SUM(C37:C56)>0), IF(E22="ECKIG", CEILING(2*C22/100+2*D22/100,2)/2, IF(OR(E22="RUND",E22="OVAL"), CEILING(ROUNDUP( (( (C22-D22)*2/100) + D22*3.14/100 ), 0),2)/2, "" ) ), "" ) ->  | D63: Stk. | E63: =IFERROR(VLOOKUP(A63,PREISE!$A:$C,3,FALSE),"") -> 9.92
A64: 25002198 | B64: =IFERROR(VLOOKUP(A64,PREISE!$A:$B,2,FALSE),"") -> Eckprofil 90° - Breite 105 mm, für Folie Modell 3 - per Stk | C64: =IF(AND(C28="FOLIENSACK",E22="ECKIG",SUM(C37:C56)>0),4,"") ->  | D64: Stk. | E64: =IFERROR(VLOOKUP(A64,PREISE!$A:$C,3,FALSE),"") -> 9.92
A65: 25002182 | B65: =IFERROR(VLOOKUP(A65,PREISE!$A:$B,2,FALSE),"") -> Klemmprofil (Kederprofil) für Folie, weiss - Menge 25 lfm | D65: Stk. | E65: =IFERROR(VLOOKUP(A65,PREISE!$A:$C,3,FALSE),"") -> 50.44 | F65: =IF(C65="","",C65*E65) -> 
D66: =IF(SUM(F37:F65)>0,"Gesamt:","") ->  | E66: =IF(SUM(F37:F65)>0,SUM(F37:F65),"") -> 
A68: Gewebefolie 1.5mm / Komplett verlegt vor Ort durch Fachfirma | I68: ↑nach oben
A69: Die Folie wird fachgerecht verlegt bzw. verschweisst - inkl. Garantie! | D69: =IF(AND(C22<>"",D22<>"",C23<>""),IF(E22="ECKIG",ROUNDUP((2*C22/100+2*D22/100)*1.5 + C22*D22/10000,0), IF(OR(E22="RUND",E22="OVAL"), ROUNDUP( (( (C22-D22)*2/100) + D22*3.14/100 ) * 1.5 + C22*D22/10000, 0), "" ) ) ) -> 68 | E69: m2 | I69: Professionelle Verlegung durch eine Fachfirma! Sie suchen die Farbe aus!
B70: Alkorplan m2 Folie zum Sonderpreis für unserer Poolkunden:
A71: 25108995 | B71: =LEFT(VLOOKUP(A71,PREISE!$A:$B,2,FALSE),60) -> Gewebefolie (1,5 mm) - Verlegung mit ALKORPLAN 2000 - SETKAU | C71: =IF(C104="",IF(SUM(C72:C74)>0,"",IF(AND(C28="GEWEBEFOLIE",D69>0),D69,"")),"") -> 68 | D71: m2 | E71: =IFERROR(VLOOKUP(A71,PREISE!$A:$C,3,FALSE),"") -> 55 | F71: =IF(C71="","",C71*E71) -> 3740 | G71: =IF(F71="","",CONCATENATE(C71,"*",A71)) -> 68*25108995
A72: 25108014 | B72: =LEFT(VLOOKUP(A72,PREISE!$A:$B,2,FALSE),60) -> Gewebefolie (1,5 mm) - Verlegung mit ALKORPLAN Xtreme - SETK | D72: m2 | E72: =IFERROR(VLOOKUP(A72,PREISE!$A:$C,3,FALSE),"") -> 82.9
A73: 25108996 | B73: =LEFT(VLOOKUP(A73,PREISE!$A:$B,2,FALSE),60) -> Gewebefolie (1,5mm) - Verlegung mit ALKORPLAN 3000 - MOSAIK | D73: m2 | E73: =IFERROR(VLOOKUP(A73,PREISE!$A:$C,3,FALSE),"") -> 89
A74: 25108993 | B74: =LEFT(VLOOKUP(A74,PREISE!$A:$B,2,FALSE),60) -> Gewebefolie (1,5 mm) - Verlegung mit ALKORPLAN - TOUCH / VOG | D74: m2 | E74: =IFERROR(VLOOKUP(A74,PREISE!$A:$C,3,FALSE),"") -> 109
A75: 25108028 | B75: =LEFT(VLOOKUP(A75,PREISE!$A:$B,2,FALSE),60) -> Mehrkosten *35 m2 pro Rolle Verlegungsfläche - bei Touch, Mo | C75: =IF(C74<>"",CEILING(C74,35)-C74,"") ->  | D75: x | E75: =IFERROR(VLOOKUP(A75,PREISE!$A:$C,3,FALSE),"") -> 55 | L75: 5 Jahre Garantie auf Verlegung
A76: 25108096 | B76: =LEFT(VLOOKUP(A76,PREISE!$A:$B,2,FALSE),60) -> Aufpreis Gewebefolie (1,5 mm) - Mindermenge unter 45 m2 Fläc | C76: =IF(C104="",IF(AND(C28="GEWEBEFOLIE",SUM(C71:C74)<45),45-SUM(C71:C74),""),"") ->  | D76: m2 | E76: =IFERROR(VLOOKUP(A76,PREISE!$A:$C,3,FALSE),"") -> 55 | F76: =IF(C76="","",C76*E76) ->  | G76: =IF(OR(F76="",C76=0),"",CONCATENATE(C76,"*",A76)) ->  | L76: 10 Jahre Garantie auf das Material der Folie
A77: Die gewünschte Farbe der Folie wird dann VOR der Verlegung DIREKT mit unserer Partnerfirma besprochen! | L77: acrylbeschichtete Folie
B78: Verlegung der Stufen, Einbinden der Einbauteile:
A79: 25108998 | B79: =LEFT(VLOOKUP(A79,PREISE!$A:$B,2,FALSE),60) -> Gewebefolie - Verlegung - Stufen gerade Kante - bis 250 cm B | C79: =IF(C104="",IF(SUM(C80:C82)>0,"",IF(C28="GEWEBEFOLIE",4,"")),"") -> 4 | D79: Stk. | E79: =IFERROR(VLOOKUP(A79,PREISE!$A:$C,3,FALSE),"") -> 175 | F79: =IF(C79="","",C79*E79) -> 700 | G79: 4*25108998 | I79: Die Stufen werden mit Trittschutzfolie (Noppen) verkleidet!
A80: 25108999 | B80: =LEFT(VLOOKUP(A80,PREISE!$A:$B,2,FALSE),60) -> Gewebefolie - Verlegung - Römer Stufe - bis 250 cm Breite - | C80: =IF(OR(C30="R100 - 200cm breit",C30="R125 - 250cm breit"),IF(C28="GEWEBEFOLIE",4,""), "") ->  | D80: Stk. | E80: =IFERROR(VLOOKUP(A80,PREISE!$A:$C,3,FALSE),"") -> 200
A81: 25108000 | B81: =LEFT(VLOOKUP(A81,PREISE!$A:$B,2,FALSE),60) -> Gewebefolie - Verlegung - Stufe gerade Kante - über 250 cm B | C81: =IF(D31>250,IF(C28="GEWEBEFOLIE",4,""), "") ->  | D81: Stk. | E81: =IFERROR(VLOOKUP(A81,PREISE!$A:$C,3,FALSE),"") -> 245 | I81: >> DETAILS zur Gewebefolienverlegung
A82: 25108001 | B82: =LEFT(VLOOKUP(A82,PREISE!$A:$B,2,FALSE),60) -> Gewebefolie - Verlegung - Römer Stufe - über 250 cm Breite - | C82: =IF(C30="R150 - 300cm breit",IF(C28="GEWEBEFOLIE",4,""), "") ->  | D82: Stk. | E82: =IFERROR(VLOOKUP(A82,PREISE!$A:$C,3,FALSE),"") -> 245
A83: 25108005 | B83: =LEFT(VLOOKUP(A83,PREISE!$A:$B,2,FALSE),60) -> Gewebefolie - Verlegung - Sitz-/ Massagebank bis 250 cm - SE | D83: Stk. | E83: =IFERROR(VLOOKUP(A83,PREISE!$A:$C,3,FALSE),"") -> 250 | I83: >> HINWEISE zur Verarbeitung / Alkorplan
A84: 25108003 | B84: =LEFT(VLOOKUP(A84,PREISE!$A:$B,2,FALSE),60) -> Gewebefolie - Verlegung - Einbauteile einbinden - SETKAUF | C84: 6 | D84: Stk. | E84: =IFERROR(VLOOKUP(A84,PREISE!$A:$C,3,FALSE),"") -> 12 | F84: =IF(C84="","",C84*E84) -> 72 | G84: 6*25108003
B85: Aufpreis High Level Pool: | I85: >> Welche Farben sind möglich?
A86: 25108002 | B86: =LEFT(VLOOKUP(A86,PREISE!$A:$B,2,FALSE),60) -> Gewebefolie - Verlegung - Einkleiden der Überlaufrinne - SET | D86: lfm. | E86: =IFERROR(VLOOKUP(A86,PREISE!$A:$C,3,FALSE),"") -> 130 | F86: =IF(C86="","",C86*E86) -> 
A87: 25108950 | B87: =LEFT(VLOOKUP(A87,PREISE!$A:$B,2,FALSE),60) -> Gewebefolie (1,5 mm) - Ausgleichsbehälter High Level Pool pe | D87: m2 | E87: =IFERROR(VLOOKUP(A87,PREISE!$A:$C,3,FALSE),"") -> 55
B88: Technikverrohrung gewünscht?
A89: 25108007 | B89: =LEFT(VLOOKUP(A89,PREISE!$A:$B,2,FALSE),60) -> Technikverrohrung Filteranlage im Filterschacht (nur bei Gew | D89: x | E89: =IFERROR(VLOOKUP(A89,PREISE!$A:$C,3,FALSE),"") -> 650 | F89: =IF(C89="","",C89*E89) ->  | I89: Die Gewebefolienverleger sind Poolbauer und können auch ihre Pooltechnik montieren!
A90: 25108010 | B90: =LEFT(VLOOKUP(A90,PREISE!$A:$B,2,FALSE),60) -> Technikeinbau je (z.B Gegenstromanlage, Salzanlage, pH-Regel | D90: x | E90: =IFERROR(VLOOKUP(A90,PREISE!$A:$C,3,FALSE),"") -> 115 | F90: =IF(C90="","",C90*E90) -> 
A91: =IF(B17="Deutschland",25102097,"") ->  | B91: =IFERROR(LEFT(VLOOKUP(A91,PREISE!$A:$B,2,FALSE),58),"") ->  | E91: =IFERROR(VLOOKUP(A91,PREISE!$A:$C,3,FALSE),"") ->  | F91: =IF(C91="","",C91*E91) -> 
A92: Die Gewebefolienverlegung ist nur in AT und DE je nach ihrer PLZ mit verschiedenen Partnerfirmen möglich!
B93: Anfahrtsspesen zum Kunden (2x - hin/retour) - bitte eintragen: | C93: Wels | D93: oder | E93: Leipzig | I93: Bitte berechnen sie die Kilometer x 2 mit Google Maps (AT + Bayern nach Wels, sonst. DE aus Leipzig)
A94: Kunden aus Österreich und Bayern berechnen die Distanz von Wels, Kunden aus Deutschland jene von Leipzig bitte! KM Mal 2 - hin und retour
A95: 25108004 | B95: =LEFT(VLOOKUP(A95,PREISE!$A:$B,2,FALSE),60) -> Anfahrtsspesen - für Gewebefolienverlegung - SETKAUF | C95: 250 | D95: KM | E95: =IFERROR(VLOOKUP(A95,PREISE!$A:$C,3,FALSE),"") -> 0.9 | F95: =IF(C95="","",C95*E95) -> 225 | G95: 250*25108004
D96: =IF(AND(C28="GEWEBEFOLIE",SUM(F71:F76,F79:F84,F86:F87,F89:F90)>0),"Gesamt:","") -> Gesamt: | E96: =IF(AND(C28="GEWEBEFOLIE",SUM(F71:F76,F79:F84,F86:F87,F89:F90)>0),SUM(F71:F76,F79:F84,F86:F87,F89:F90,F95),"") -> 4737
A98: Gewebefolie 1.5mm - nur Material zur Selbstverlegung / Rollenware + Zubehör | I98: ↑nach oben
A99: Die Berechnung des Materials finden sie im Tabellenblatt "GEWEBEFOLIE": | D99: >> Zur Berechnung
B100: Für ihren Pool (Länge x Breite in cm): | C100: =IFERROR(IF(GEWEBEFOLIE!C22<>"",GEWEBEFOLIE!C22,""),"") -> 800 | D100: =IFERROR(IF(GEWEBEFOLIE!D22<>"",GEWEBEFOLIE!D22,""),"") -> 400 | E100: =IFERROR(IF(GEWEBEFOLIE!E22<>"",GEWEBEFOLIE!E22,""),"") -> ECKIG
B101: Wurde eine Treppe berechnet? Anzahl der Stufen? | C101: =IFERROR(IF(GEWEBEFOLIE!E23<>"",GEWEBEFOLIE!E23,""),"") -> 4 | D101: Stufen
B102: Welche Farbe soll die Folie haben? | C102: HELLBLAU
A104: 25309999 | B104: Gewebefolien SET (Rollenware, Zubehör) lt. Berechnung >>>> | D104: x | E104: =IFERROR(IF(GEWEBEFOLIE!F89<>"",GEWEBEFOLIE!F89,""),"") -> 3680.09 | F104: =IF(C104="","",C104*E104) ->  | I104: >> DETAILS zur ROLLENWARE ALKORPLAN (inkl. Zubehör, Winkel, Vlies usw.)
G106: =IF(F106="","",CONCATENATE(C106,"*",A106)) -> 
A107: Ihre Ergänzungen
B108: bitte unsere 8-stellige Artikelnr links eintragen: | I108: Vom Billigsten und vom Besten
B109: =IF(A109=""," <<<<",IFERROR(LEFT(VLOOKUP(A109,PREISE!$A:$B,2,FALSE),60),"")) -> <<<< | D109: Stk. | E109: =IF(A109="","",IFERROR(VLOOKUP(A109,PREISE!$A:$C,3,FALSE),"")) ->  | F109: =IF(C109="","",C109*E109) ->  | G109: =IF(AND(A109="",F109=""),"",CONCATENATE(C109,"*",A109)) ->  | I109: "Es ist unklug, viel zu zahlen. Aber es ist schlimmer, zu wenig zu zahlen.
B110: =IF(A110=""," <<<<",IFERROR(VLOOKUP(A110,PREISE!$A:$B,2,FALSE),"")) -> <<<< | D110: Stk. | E110: =IF(A110="","",IFERROR(VLOOKUP(A110,PREISE!$A:$C,3,FALSE),"")) ->  | G110: =IF(AND(A110="",F110=""),"",CONCATENATE(C110,"*",A110)) ->  | I110: Wenn Sie zu viel zahlen, verlieren Sie ein wenig Geld -
B111: =IF(A111=""," <<<<",IFERROR(VLOOKUP(A111,PREISE!$A:$B,2,FALSE),"")) -> <<<< | D111: Stk. | E111: =IF(A111="","",IFERROR(VLOOKUP(A111,PREISE!$A:$C,3,FALSE),"")) ->  | I111: das ist alles.
B112: =IF(A112=""," <<<<",IFERROR(VLOOKUP(A112,PREISE!$A:$B,2,FALSE),"")) -> <<<< | D112: Stk. | E112: =IF(A112="","",IFERROR(VLOOKUP(A112,PREISE!$A:$C,3,FALSE),"")) ->  | I112: Wenn Sie zu wenig zahlen, verlieren Sie manchmal alles.
B113: =IF(A113=""," <<<<",IFERROR(VLOOKUP(A113,PREISE!$A:$B,2,FALSE),"")) -> <<<< | D113: Stk. | E113: =IF(A113="","",IFERROR(VLOOKUP(A113,PREISE!$A:$C,3,FALSE),"")) ->  | F113: =IF(C113="","",C113*E113) ->  | I113: Weil das, was Sie gekauft haben, nicht in der Lage ist, das zu tun,
B114: =IF(A114=""," <<<<",IFERROR(VLOOKUP(A114,PREISE!$A:$B,2,FALSE),"")) -> <<<< | D114: Stk. | E114: =IF(A114="","",IFERROR(VLOOKUP(A114,PREISE!$A:$C,3,FALSE),"")) ->  | I114: wozu es gekauft wurde.
B115: =IF(A115=""," <<<<",IFERROR(VLOOKUP(A115,PREISE!$A:$B,2,FALSE),"")) -> <<<< | D115: Stk. | E115: =IF(A115="","",IFERROR(VLOOKUP(A115,PREISE!$A:$C,3,FALSE),"")) ->  | I115: Das Gesetz vom Gleichgewicht der Wirtschaft untersagt es, wenig zu zahlen um viel zu bekommen -
B116: =IF(A116=""," <<<<",IFERROR(VLOOKUP(A116,PREISE!$A:$B,2,FALSE),"")) -> <<<< | D116: Stk. | E116: =IF(A116="","",IFERROR(VLOOKUP(A116,PREISE!$A:$C,3,FALSE),"")) ->  | I116: das ist nicht möglich.
B117: =IF(A117=""," <<<<",IFERROR(VLOOKUP(A117,PREISE!$A:$B,2,FALSE),"")) -> <<<< | D117: Stk. | E117: =IF(A117="","",IFERROR(VLOOKUP(A117,PREISE!$A:$C,3,FALSE),"")) ->  | I117: Wenn Sie mit dem niedrigsten Anbieter Geschäfte machen, ist es ratsam etwas für das Risiko aufzuschlagen, das Sie eingehen.
B118: =IF(A118=""," <<<<",IFERROR(VLOOKUP(A118,PREISE!$A:$B,2,FALSE),"")) -> <<<< | D118: Stk. | E118: =IF(A118="","",IFERROR(VLOOKUP(A118,PREISE!$A:$C,3,FALSE),"")) ->  | I118: Wenn Sie das tun, haben Sie genug, um für etwas Besseres zu zahlen."
B119: =IF(A119=""," <<<<",IFERROR(VLOOKUP(A119,PREISE!$A:$B,2,FALSE),"")) -> <<<< | D119: Stk. | E119: =IF(A119="","",IFERROR(VLOOKUP(A119,PREISE!$A:$C,3,FALSE),"")) ->  | I119: John Ruskin, 1829 - 1900
D120: =IF(SUM(F109:F119)>0,"Gesamt","") ->  | E120: =IF(SUM(F109:F119)>0,SUM(F109:F119),"") -> 
I122: Sie haben Fragen? - Wir beraten Sie sehr gerne!
A123: Summe:
B124: =IF(OR($C$22="",$D$22=""),"Bitte geben Sie oben die Länge x Breite ihres Pools ein!","") ->  | C124: Nettosumme exkl. | F124: =SUM(F33:F120) -> 4737 | I124: Bitte schreiben Sie uns ihre Fragen & Wünsche schriftlich:
A125: Land: | B125: =IF($B$17="","Bitte wählen Sie oben ihr Land aus!",$B$17) -> Österreich | C125: =IF($B$17="Österreich",0.2,IF($B$17="Deutschland",0.19,0)) -> 0.2 | D125: Mehrwertsteuer | F125: =ROUNDUP(F124*C125,2) -> 947.4 | I125: >> KONTAKTFORMULAR | L125: office@pooldoktor.at
I126: (ein auf ihr Anliegen geschulter Mitarbeiter wird sich bei ihnen melden!)
B127: Angebostsumme inklusive Mehrwertsteuer: | E127: =IF(F124<250,"Daten fehlen!",SUM(F124:F125)) -> 5684.4
I128: Sie möchten angerufen werden? Beratung per Telefon?
A129: Die Lieferzeit von Folien ist bitte nur auf Anfrage!!! | C129: Zahlungsart: auf Rechnung | I129: >> RÜCKRUFSERVICE | L129: +43 732 38 22 22
B130: Auf Anfrage | F130: Banküberweisung nach Warenerhalt | L130: +49 851 20 42 824
I131: Sie möchten einen KOSTENLOSEN Beratungstermin in Linz?
A132: Bitte lesen sie unsere Allgemeinen Geschäftsbedingungen: | C132: Angebot gültig bis: | F132: =B7+30 -> 2023-10-21 | I132: >> BERATUNGSTERMIN VEREINBAREN | M132: >> ANFAHRT
A133: http://www.pooldoktor.net/shop/geschaeftsbedingungen | C133: Preisänderungen wegen Irrtümer vorbehalten!
I134: Unseren Schauraum in Linz besuchen? | L134: >> VIRTUELLER RUNDGANG in 3D | O134: Unser Team freut sich Sie kennenzulernen!
A135: >>>>>>>> | B135: Wir Beraten Sie gerne - Fragen Sie uns! office@pooldoktor.at | F135: Jetzt Termin vereinbaren!
A136: POOLDOKTOR Handels GmbH, Kotzinastrasse 15 - 4030 Linz, Österreich - FN 256113 m - AT68 3800 0000 0089 2687
A138: Sie möchten dieses Angebot bestellen? >>>> Wir freuen uns sehr und danken Ihnen vielmals für ihr Vertrauen!
A139: 1. Bitte Senden Sie dieses Angebot als Excel- oder PDF-Datei mit ihren Adressdaten an office@pooldoktor.at
A140: 2. Ihr persönlicher Ansprechpartner, der ihnen beim ihrem Projekt mit Rat & Tat zur Seite steht, wird sich umgehend melden!
I144: Die Fa. Pooldoktor existiert seit über 17 Jahren! | M144: Mittlerweile wurden über 10.000 Styroporpools von unseren Kunden erstellt!

Sheet GEWEBEFOLIE
A1: POOL Kalkulator PRO | F1: © WUNDERWORKS
C2: POOLDOKTOR Handels GmbH
C3: Kotzinastrasse 15 - 4030 Linz - AT
C4: Telefon: + 43 732 38 22 22
C5: Email: office@pooldoktor.at
A7: Datum: | B7: =TODAY() -> 2023-09-21 | C7: Angebot gültig bis: | F7: =B7+30 -> 2023-10-21
F8: (Datum gültig bei PDF oder Ausdruck)
A9: Ihre Anschrift - Kundendaten
B10: bitte vollständig ausfüllen:
A11: Rechnungsadresse | C11: Lieferadresse? | E11: falls abweichend
A12: Titel | B12: =IFERROR(IF(POOL!B12<>"",POOL!B12,""),"") ->  | C12: =IFERROR(IF(POOL!C12<>"",POOL!C12,""),"") -> 
A13: Name | B13: =IFERROR(IF(POOL!B13<>"",POOL!B13,""),"") ->  | C13: =IFERROR(IF(POOL!C13<>"",POOL!C13,""),"") -> 
A14: Straße | B14: =IFERROR(IF(POOL!B14<>"",POOL!B14,""),"") ->  | C14: =IFERROR(IF(POOL!C14<>"",POOL!C14,""),"") -> 
A15: PLZ | B15: =IFERROR(IF(POOL!B15<>"",POOL!B15,""),"") ->  | C15: =IFERROR(IF(POOL!C15<>"",POOL!C15,""),"") -> 
A16: Ort | B16: =IFERROR(IF(POOL!B16<>"",POOL!B16,""),"") ->  | C16: =IFERROR(IF(POOL!C16<>"",POOL!C16,""),"") -> 
A17: Land | B17: =IFERROR(IF(POOL!B17<>"",POOL!B17,"Österreich"),"Österreich") -> Österreich | C17: =IFERROR(IF(POOL!C17<>"",POOL!C17,""),"") -> 
A18: Telefon | B18: =IFERROR(IF(POOL!B18<>"",POOL!B18,""),"") ->  | C18: =IFERROR(IF(POOL!C18<>"",POOL!C18,""),"") -> 
A19: Email | B19: =IFERROR(IF(POOL!B19<>"",POOL!B19,""),"") ->  | C19: =IFERROR(IF(POOL!C19<>"",POOL!C19,""),"") -> 
C20: =IF($C$22="","",$C$22/100) -> 8 | D20: =IF($D$22="","",$D$22/100) -> 4
A21: Fragen bzw. Angaben zu Ihrem Pool | C21: Länge? | D21: Breite? | E21: Form?
A22: Bitte geben Sie das INNENMASS ihres Schwimmbeckens an (in cm): | C22: =IFERROR(IF(POOL!C22<>"",POOL!C22,600),600) -> 800 | D22: =IFERROR(IF(POOL!D22<>"",POOL!D22,300),300) -> 400 | E22: =IFERROR(IF(POOL!E22<>"",POOL!E22,"ECKIG"),"ECKIG") -> ECKIG
A23: Hat ihr Pool eine Treppe? Abmessungen / Anzahl Stufen? | C23: 150 | D23: 150 | E23: 4 | F23: =IF(E23<>""," Stufen","") -> Stufen
A24: Wie tief ist ihr Pool? Bitte die Nächsthöhere Tiefe wählen: | C24: =IFERROR(IF(POOL!C23<>"",POOL!C23,150),150) -> 150 | D24: cm
A25: Welche FARBE soll die Folie haben? | C25: SAND
B26: Umfang: | C26: =IF(E22="ECKIG",(2*C22+2*D22)/100,IF(E22="OVAL",(D22*3.14+(C22-D22)*2)/100, IF(E22="RUND",D22*3.14/100, "") )) -> 24 | D26: m | I26: Wir verkaufen die Alkorplan 2000 Gewebefolie ausschliesslich in ROLLENWARE (Keine Meterware - nur bei Trittschutz!)
B27: Wandfläche (Umfang x Tiefe): | C27: =C26*C24/100 -> 36 | D27: m2 | I27: Info zur Berechnung:
B28: Bodenfläche (Länge x Breite): | C28: =C22*D22/10000 -> 32 | D28: m2 | I28: Bei den Wänden nimmt man dem Umfang und der Tiefe entsprechend eine 1,65cm oder 2,05m Bahn.
I29: Den Boden muss man leider immer stückeln - entweder längs oder quer je nach Poolbreite bzw. -länge.
B30: Rollenhöhe: | C30: 165 cm | D30: 205 cm | I30: Bitte ausreichend Reserven einplanen und immer nachrechnen!
B31: Benötigte Rollen Wand: | C31: =IF(C24=150,C26/25,"") -> 0.96 | D31: =IF(C24=180,C26/25,"") -> 
B32: Benötigte Rollen Boden: | C32: =IF(D22<301,(D22/150*C22/100)/25,"") ->  | D32: =IF(D22>300,(D22/150*C22/100)/25,"") -> 0.8533333333 | O32: >> Farben KONFIGURATOR
B33: Empfehlung (ohne Gewähr): | C33: =IF(SUM(C31:C32)=0,"",ROUNDUP(SUM(C31:C32),0)) -> 1 | D33: =IF(SUM(D31:D32)=0,"",ROUNDUP(SUM(D31:D32),0)) -> 1 | O33: (welche Farbe hat der Pool mit Wasser befüllt?)
A34: Info: Bitte kalkulieren sie auch die benötigte Folienmenge selber nach! Dies ist ein automatisierter Vorschlag!
I35: >> DETAILS ROLLENWARE Alkorplan Gewebefolien
A36: ANGEBOT - GEWEBEFOLIEN zum SELBER VERLEGEN / nur MATERIAL
I37: Sie möchten die 1.5mm Gewebefolie von Alkorplan selber verlegen/verschweissen oder kennen jemanden (Dachdecker usw.)?
A38: Artikelnr. | B38: Artikelname | C38: Menge | E38: Preis | F38: Summe
I39: Bitte vorab lesen:
A40: ALKORPLAN | I40: >> Verarbeitungshinweise ALKORPLAN
A41: Acrylbeschichtete Gewebefolie für Boden und Wand: | I41: >> Welche Farben sind möglich?
A42: 25110010 | B42: =VLOOKUP(A42,PREISE!$A:$B,2,FALSE) -> Alkorplan 2000 - adriablau - 1,65 - 25 lfm - 41,25m2 | C42: =IF(AND($C$25="ADRIABLAU",$C$33<>""),$C$33,"") ->  | D42: Stk. | E42: =VLOOKUP(A42,PREISE!$A:$C,3,FALSE) -> 1082.5 | F42: =IF(C42="","",C42*E42) ->  | G42: =IF(F42="","",CONCATENATE(C42,"*",A42)) -> 
A43: 25110011 | B43: =VLOOKUP(A43,PREISE!$A:$B,2,FALSE) -> Alkorplan 2000 - adriablau - 2,05 - 25 lfm - 51,25m2 | C43: =IF(AND($C$25="ADRIABLAU",$D$33<>""),$D$33,"") ->  | D43: Stk. | E43: =VLOOKUP(A43,PREISE!$A:$C,3,FALSE) -> 1332.5 | G43: =IF(F43="","",CONCATENATE(C43,"*",A43)) -> 
A44: 25110012 | B44: =VLOOKUP(A44,PREISE!$A:$B,2,FALSE) -> Alkorplan 2000 - hellblau - 1,65 - 25 lfm - 41,25m2 | C44: =IF(AND($C$25="HELLBLAU",$C$33<>""),$C$33,"") ->  | D44: Stk. | E44: =VLOOKUP(A44,PREISE!$A:$C,3,FALSE) -> 1082.5
A45: 25110013 | B45: =VLOOKUP(A45,PREISE!$A:$B,2,FALSE) -> Alkorplan 2000 - hellblau - 2,05 - 25 lfm - 51,25m2 | C45: =IF(AND($C$25="HELLBLAU",$D$33<>""),$D$33,"") ->  | D45: Stk. | E45: =VLOOKUP(A45,PREISE!$A:$C,3,FALSE) -> 1332.5
A46: 25110016 | B46: =VLOOKUP(A46,PREISE!$A:$B,2,FALSE) -> Alkorplan 2000 - weiß - 1,65 - 25 lfm - 41,25m2 | C46: =IF(AND($C$25="WEISS",$C$33<>""),$C$33,"") ->  | D46: Stk. | E46: =VLOOKUP(A46,PREISE!$A:$C,3,FALSE) -> 1082.5
A47: 25110017 | B47: =VLOOKUP(A47,PREISE!$A:$B,2,FALSE) -> Alkorplan 2000 - weiß - 2,05 - 25 lfm - 51,25m2 | C47: =IF(AND($C$25="WEISS",$D$33<>""),$D$33,"") ->  | D47: Stk. | E47: =VLOOKUP(A47,PREISE!$A:$C,3,FALSE) -> 1332.5
A48: 25110018 | B48: =VLOOKUP(A48,PREISE!$A:$B,2,FALSE) -> Alkorplan 2000 - sand - 1,65 - 25 lfm - 41,25m2 | C48: =IF(AND($C$25="SAND",$C$33<>""),$C$33,"") -> 1 | D48: Stk. | E48: =VLOOKUP(A48,PREISE!$A:$C,3,FALSE) -> 1082.5 | F48: 1082.5 | G48: 1*25110018
A49: 25110019 | B49: =VLOOKUP(A49,PREISE!$A:$B,2,FALSE) -> Alkorplan 2000 - sand - 2,05 - 25 lfm - 51,25m2 | C49: =IF(AND($C$25="SAND",$D$33<>""),$D$33,"") -> 1 | D49: Stk. | E49: =VLOOKUP(A49,PREISE!$A:$C,3,FALSE) -> 1332.5 | F49: 1332.5 | G49: 1*25110019
A50: 25110020 | B50: =VLOOKUP(A50,PREISE!$A:$B,2,FALSE) -> Alkorplan 2000 - grau - 1,65 - 25 lfm - 41,25m2 | C50: =IF(AND($C$25="GRAU",$C$33<>""),$C$33,"") ->  | D50: Stk. | E50: =VLOOKUP(A50,PREISE!$A:$C,3,FALSE) -> 1082.5 | F50: =IF(C50="","",C50*E50) -> 
A51: 25110021 | B51: =VLOOKUP(A51,PREISE!$A:$B,2,FALSE) -> Alkorplan 2000 - grau - 2,05 - 25 lfm - 51,25m2 | C51: =IF(AND($C$25="GRAU",$D$33<>""),$D$33,"") ->  | D51: Stk. | E51: =VLOOKUP(A51,PREISE!$A:$C,3,FALSE) -> 1332.5
A52: 25110022 | B52: =VLOOKUP(A52,PREISE!$A:$B,2,FALSE) -> Alkorplan 2000 - dunkelgrau - 1,65 - 25 lfm - 41,25m2 | C52: =IF(AND($C$25="DUNKELGRAU",$C$33<>""),$C$33,"") ->  | D52: Stk. | E52: =VLOOKUP(A52,PREISE!$A:$C,3,FALSE) -> 1082.5
A53: 25110023 | B53: =VLOOKUP(A53,PREISE!$A:$B,2,FALSE) -> Alkorplan 2000 - dunkelgrau - 2,05 - 25 lfm - 51,25m2 | C53: =IF(AND($C$25="DUNKELGRAU",$D$33<>""),$D$33,"") ->  | D53: Stk. | E53: =VLOOKUP(A53,PREISE!$A:$C,3,FALSE) -> 1332.5
A55: Antislipfolie für Stufen:
A56: 25110040 | B56: =VLOOKUP(A56,PREISE!$A:$B,2,FALSE) -> Alkorplan - Antislipfolie - adriablau - 1,65 - per lfm | C56: =IF(AND(C25="ADRIABLAU",E23<>"",C23<>"",D23<>""),ROUNDUP(D23*1.5/100*E23/4,0),"") ->  | D56: lfm | E56: =VLOOKUP(A56,PREISE!$A:$C,3,FALSE) -> 99.17
A57: 25110041 | B57: =VLOOKUP(A57,PREISE!$A:$B,2,FALSE) -> Alkorplan - Antislipfolie - hellblau - 1,65 - per lfm | C57: =IF(AND(C25="HELLBLAU",E23<>"",C23<>"",D23<>""),ROUNDUP(D23*1.5/100*E23/4,0),"") ->  | D57: lfm | E57: =VLOOKUP(A57,PREISE!$A:$C,3,FALSE) -> 99.17
A58: 25110043 | B58: =VLOOKUP(A58,PREISE!$A:$B,2,FALSE) -> Alkorplan - Antislipfolie - weiß - 1,65 - per lfm | C58: =IF(AND(C25="WEISS",E23<>"",C23<>"",D23<>""),ROUNDUP(D23*1.5/100*E23/4,0),"") ->  | D58: lfm | E58: =VLOOKUP(A58,PREISE!$A:$C,3,FALSE) -> 99.17
A59: 25110044 | B59: =VLOOKUP(A59,PREISE!$A:$B,2,FALSE) -> Alkorplan - Antislipfolie - sand - 1,65 - per lfm | C59: =IF(AND(C25="SAND",E23<>"",C23<>"",D23<>""),ROUNDUP(D23*1.5/100*E23/4,0),"") -> 3 | D59: lfm | E59: =VLOOKUP(A59,PREISE!$A:$C,3,FALSE) -> 99.17 | F59: 297.51 | G59: 3*25110044
A60: 25110045 | B60: =VLOOKUP(A60,PREISE!$A:$B,2,FALSE) -> Alkorplan - Antislipfolie - grau - 1,65 - per lfm | C60: =IF(AND(C25="GRAU",E23<>"",C23<>"",D23<>""),ROUNDUP(D23*1.5/100*E23/4,0),"") ->  | D60: lfm | E60: =VLOOKUP(A60,PREISE!$A:$C,3,FALSE) -> 99.17
A61: 25110046 | B61: =VLOOKUP(A61,PREISE!$A:$B,2,FALSE) -> Alkorplan - Antislipfolie - dunkelgrau - 1,65 - per lfm | C61: =IF(AND(C25="DUNKELGRAU",E23<>"",C23<>"",D23<>""),ROUNDUP(D23*1.5/100*E23/4,0),"") ->  | D61: lfm | E61: =VLOOKUP(A61,PREISE!$A:$C,3,FALSE) -> 99.17
A63: Flüssigfolie / Nahtversiegelung
A64: 25110051 | B64: =VLOOKUP(A64,PREISE!$A:$B,2,FALSE) -> Alkorplan - Nahtversiegelung - Flüssigfolie - adriablau - 1L | C64: =IF(C25="ADRIABLAU",2,"") ->  | D64: Stk. | E64: =VLOOKUP(A64,PREISE!$A:$C,3,FALSE) -> 45.83 | F64: =IF(C64="","",C64*E64) ->  | L64: Die Nahtversiegelung füllt man in die Dosierflasche und spritzt diese in die Fugen!
A65: 25110050 | B65: =VLOOKUP(A65,PREISE!$A:$B,2,FALSE) -> Alkorplan - Nahtversiegelung - Flüssigfolie - hellblau - 1L | C65: =IF(C25="HELLBLAU",2,"") ->  | D65: Stk. | E65: =VLOOKUP(A65,PREISE!$A:$C,3,FALSE) -> 45.83 | L65: Mit Quellschweissmittel kann man die Flüssigfolie verdünnen!
A66: 25110052 | B66: =VLOOKUP(A66,PREISE!$A:$B,2,FALSE) -> Alkorplan - Nahtversiegelung - Flüssigfolie - weiß - 1L | C66: =IF(C25="WEISS",2,"") ->  | D66: Stk. | E66: =VLOOKUP(A66,PREISE!$A:$C,3,FALSE) -> 45.83
A67: 25110053 | B67: =VLOOKUP(A67,PREISE!$A:$B,2,FALSE) -> Alkorplan - Nahtversiegelung - Flüssigfolie - sand - 1L | C67: =IF(C25="SAND",2,"") -> 2 | D67: Stk. | E67: =VLOOKUP(A67,PREISE!$A:$C,3,FALSE) -> 45.83 | F67: 91.66 | G67: 2*25110053 | M67: Auf dem Blechwinkel ist eine blaue PVC Beschichtung!
A68: 25110058 | B68: =VLOOKUP(A68,PREISE!$A:$B,2,FALSE) -> Alkorplan - Nahtversiegelung - Flüssigfolie - grau - 1L | C68: =IF(C25="GRAU",2,"") ->  | D68: Stk. | E68: =VLOOKUP(A68,PREISE!$A:$C,3,FALSE) -> 53.08 | M68: Auf diese kann mit Heissluft die PVC Gewebefolie verschweisst werden!
A69: 25110158 | B69: =VLOOKUP(A69,PREISE!$A:$B,2,FALSE) -> Alkorplan - Nahtversiegelung - Flüssigfolie - dunkelgrau - 1L | C69: =IF(C25="DUNKELGRAU",2,"") ->  | D69: Stk. | E69: =VLOOKUP(A69,PREISE!$A:$C,3,FALSE) -> 45.83 | F69: =IF(C69="","",C69*E69) ->  | M69: Die Winkel selber werden mit Blitzdübel am Betonkranz vestgedübelt!
A70: 25110054 | B70: =VLOOKUP(A70,PREISE!$A:$B,2,FALSE) -> Dosierflasche für Nahtversiegelung | C70: 1 | D70: Stk. | E70: =VLOOKUP(A70,PREISE!$A:$C,3,FALSE) -> 20.72 | F70: 20.72 | G70: 1*25110054 | M70: (Bei Renovierungen kann auf der Poolwand auch ein Blech angedübelt werden)
A72: Bleckwinkel zu Befestigung
A73: 25105025 | B73: =VLOOKUP(A73,PREISE!$A:$B,2,FALSE) -> Folienbeschichteter Blechwinkel 20 x 80 x 2000 mm - außen | C73: =IF(C26<>"",C26/2,"") -> 12 | D73: Stk. | E73: =VLOOKUP(A73,PREISE!$A:$C,3,FALSE) -> 16.58 | F73: =IF(C73="","",C73*E73) -> 198.96 | G73: 12*25105025 | M73: Das Vlies wird mit Sprühkleber am Untergrund befestigt!
A74: 25105026 | B74: =VLOOKUP(A74,PREISE!$A:$B,2,FALSE) -> Folienbeschichteter Blechwinkel 50 x 50 x 2000 mm - außen | C74: =IF(AND(C23<>"",D23<>"",E23<>""),D23/200*E23*E23/4,"") -> 3 | D74: Stk. | E74: =VLOOKUP(A74,PREISE!$A:$C,3,FALSE) -> 16.58 | F74: 49.74 | G74: 3*25105026 | M74: (man braucht zumeist 3 Dosen)
A75: 25105027 | B75: =VLOOKUP(A75,PREISE!$A:$B,2,FALSE) -> Folienbeschichteter Blechwinkel 50 x 50 x 2000 mm - innen | C75: =IF(AND(C23<>"",D23<>"",E23<>""),D23/200*E23*E23/4,"") -> 3 | D75: Stk. | E75: =VLOOKUP(A75,PREISE!$A:$C,3,FALSE) -> 16.58 | F75: 49.74 | G75: 3*25105027 | M75: Der Untergrund wurde zuvor mit Desinfektionsmittel gereinigt!
A76: 25110055 | B76: =VLOOKUP(A76,PREISE!$A:$B,2,FALSE) -> Blitzdübel 6 x 30 mm zur Folienblechbefestigung (500 Stück) | C76: 1 | D76: Stk. | E76: =VLOOKUP(A76,PREISE!$A:$C,3,FALSE) -> 60.08 | F76: 60.08 | G76: 1*25110055 | M76: (1 L Desinfektion für 75m2 Fläche)
A78: Vlies und Desinfektion
A79: 25003001 | B79: =VLOOKUP(A79,PREISE!$A:$B,2,FALSE) -> Vlies weiss 300 gr./m2 (50 lfm/ H165 =82,5m2) | C79: =IF(C24=150,ROUNDUP(SUM(C27:C28)/82.5,0),"") -> 1 | D79: Stk. | E79: =VLOOKUP(A79,PREISE!$A:$C,3,FALSE) -> 249.17 | F79: =IF(C79="","",C79*E79) -> 249.17 | G79: 1*25003001 | I79: Sie haben Fragen? - Wir beraten Sie sehr gerne!
A80: 25003002 | B80: =VLOOKUP(A80,PREISE!$A:$B,2,FALSE) -> Vlies weiss 300 gr./m2 (50 lfm/ H200 =100 m2) | C80: =IF(C24=180,ROUNDUP(SUM(C27:C28)/100,0),"") ->  | D80: Stk. | E80: =VLOOKUP(A80,PREISE!$A:$C,3,FALSE) -> 290.83
A81: 25105080 | B81: =VLOOKUP(A81,PREISE!$A:$B,2,FALSE) -> Sprühkleber für Vlies - hohe Sofortklebekraft | C81: 3 | D81: Stk. | E81: =VLOOKUP(A81,PREISE!$A:$C,3,FALSE) -> 19.92 | F81: =IF(C81="","",C81*E81) -> 59.76 | I81: Bitte schreiben Sie uns ihre Fragen & Wünsche schriftlich:
A82: 25006813 | B82: =VLOOKUP(A82,PREISE!$A:$B,2,FALSE) -> Desinfektionsmittel für den Untergrund 1000 ml - (Vlies) | C82: 1 | D82: Stk. | E82: =VLOOKUP(A82,PREISE!$A:$C,3,FALSE) -> 42.75 | F82: 42.75 | G82: 1*25006813 | I82: >> KONTAKTFORMULAR | L82: office@pooldoktor.at
I83: (ein auf ihr Anliegen geschulter Mitarbeiter wird sich bei ihnen melden!)
A84: =IF(B17="","Bitte wählen Sie oben Ihr Land aus!","") -> 
A85: Versandkosten (nur AT + DE möglich!) | I85: Sie möchten angerufen werden? Beratung per Telefon?
A86: 81008100 | B86: =VLOOKUP(A86,PREISE!$A:$B,2,FALSE) -> Verpackung + Versandkosten + Verwaltung | C86: =IF(AND(B17<>"",C26>0),1,"") -> 1 | D86: x | E86: 145 | F86: =IF(C86="","",C86*E86) -> 145 | G86: 1*81008100 | I86: >> RÜCKRUFSERVICE | L86: +43 732 38 22 22
A88: Summe: | I88: Sie möchten einen KOSTENLOSEN Beratungstermin in Linz?
B89: =IF(OR($C$22="",$D$22=""),"Bitte geben Sie oben die Länge x Breite ihres Pools ein!","") ->  | C89: Nettosumme exkl. | F89: =SUM(F42:F86) -> 3680.09 | I89: >> BERATUNGSTERMIN VEREINBAREN | M89: >> ANFAHRT
A90: Land: | B90: =IF($B$17="","Bitte wählen Sie oben ihr Land aus!",$B$17) -> Österreich | C90: =IF($B$17="Österreich",0.2,IF($B$17="Deutschland",0.19,0)) -> 0.2 | D90: Mehrwertsteuer | F90: =ROUNDUP(F89*C90,2) -> 736.02
I91: Unseren Schauraum in Linz besuchen? | L91: >> VIRTUELLER RUNDGANG in 3D | O91: Unser Team freut sich Sie kennenzulernen!
B92: Angebostsumme inklusive Mehrwertsteuer: | E92: =IF(F89<250,"Daten fehlen!",SUM(F89:F90)) -> 4416.11
A94: Die Lieferzeit für die Gewebefolie samt Zubehör beträgt voraussichtlich: | C94: Zahlungsart: auf Rechnung
A95: 25109955 | B95: =VLOOKUP(A95,PREISE!$A:$B,2,FALSE) -> 2 - 4 Wochen | F95: Banküberweisung nach Warenerhalt
A97: Bitte lesen sie unsere Allgemeinen Geschäftsbedingungen: | C97: Angebot gültig bis: | F97: =B7+30 -> 2023-10-21
A98: http://www.pooldoktor.net/shop/geschaeftsbedingungen | C98: Preisänderungen wegen Irrtümer vorbehalten!
A100: >>>>>>>> | B100: Wir Beraten Sie gerne - Fragen Sie uns! office@pooldoktor.at | F100: Jetzt Termin vereinbaren!
A101: POOLDOKTOR Handels GmbH, Kotzinastrasse 15 - 4030 Linz, Österreich - FN 256113 m - AT74 1860 0000 1120 8626 | I101: Die Fa. Pooldoktor existiert seit über 17 Jahren! | M101: Mittlerweile wurden über 10.000 Styroporpools von unseren Kunden erstellt!

Sheet PREISE (hidden)
A1: Artikelnummer | B1: Kurzname | C1: Preis
A2: 0 | B2: KEIN STANDARDMASS | C2: 0
A3: 1 | B3: Spezialanfertigung - bitte Angebot einholen | C3: 0
A4: 10009999 | B4: 20% Aufpreis für Kundenservice ohne Kaufnachweis / Vorkasse. Sonderbestellung | C4: 0
A5: 11000608 | B5: Steine IGLU | C5: 10
A6: 11000609 | B6: Steine IGLU | C6: 0
A7: 11000615 | B7: Steine IGLU | C7: 0
A8: 11000616 | B8: Steine IGLU | C8: 0
A9: 11000808 | B9: ISO MASSIV Schalstein - gerade (100x25x25 cm) | C9: 11.96
A10: 11000809 | B10: ISO-MASSIV Bogenschalstein 100x25x25 cm H30 | C10: 15.18
A11: 11000908 | B11: ISO-MASSIV - ISOLIERPLATTE PS 50 +-10% Toleranz (100x50x5cm) Bodenisolierung, trittfest | C11: 10.75
A12: 11002161 | B12: Steine IGLU | C12: 0
A13: 11002814 | B13: ISO-MASSIV - Endschuber | C13: 0.75
A14: 11005540 | B14: ISO MASSIV - Sonderelement - zur Wand-Eckaussteifung 116 x 61 cm. | C14: 33.25
A15: 11006030 | B15: ISO MASSIV Set 19 - 600x300x150 Eckig - Ecktreppe - Überdachungsbausatz Klasik | C15: 9401.67
A16: 11007035 | B16: ISO MASSIV Set 20 - 700x350x 150 Eckig - Ecktreppe - Überdachungsbausatz Klasik | C16: 12135
A17: 11007650 | B17: ISO-MASSIV BIGSTONE PS 40 +-10% Toleranz - GERADE - bei Setkauf! | C17: 16.58
A18: 11007651 | B18: ISO-MASSIV - BOGENSTEIN PS30 (+-10% Toleranz) | C18: 14.08
A19: 11007652 | B19: ISO-MASSIV BIGSTONE Plus H45 - Schalstein gerade | C19: 24.38
A20: 11007653 | B20: ISO-MASSIV BIGSTONE Plus H45 - Bogenschalstein | C20: 26.22
A21: 11007654 | B21: ISO-MASSIV - Bogenschuber DM 200 | C21: 1.25
A22: 11007655 | B22: ISO-MASSIV - Bogenschuber DM 250 | C22: 1.25
A23: 11007656 | B23: ISO-MASSIV - Bogenschuber DM 300 | C23: 1.25
A24: 11007657 | B24: ISO-MASSIV - Bogenschuber DM 400 | C24: 1.25
A25: 11007658 | B25: ISO-MASSIV - Bogenschuber DM 500 | C25: 1.25
A26: 11007659 | B26: ISO-MASSIV - Bogenschuber DM 600 | C26: 1.25
A27: 11008000 | B27: WUNDER-STONE- ISOLIERSTEIN PS 50 +-10% Toleranz - SET | C27: 15.75
A28: 11008020 | B28: WUNDER-STONE- ISOLIERSTEINHÄLFTE PS 50 +-10% | C28: 7.42
A29: 11008040 | B29: ISO MASSIV Set 21 - 800x400x150 Eckig - Ecktreppe - Überdachungsbausatz Klasik | C29: 12529.17
A30: 11008050 | B30: WUNDER-STONE - ABS Verbinder ( 8 Stk für 2 Hälften) | C30: 0.25
A31: 11008090 | B31: WUNDER-STONE ENDSCHUBER | C31: 1.58
A32: 11008650 | B32: ISO MASSIV SET NEPTUN BIGSTONE Plus - ab Werk, (125x25x30 cm) | C32: 15.64
A33: 11009500 | B33: WUNDER-STONE- ISOLIERSTEIN PS 50 +-10% Toleranz - KEIN SET | C33: 15.75
A34: 11009650 | B34: ISO-MASSIV BIGSTONE PS 40 (+-10%) - gerade (125x25x30 cm) - KEIN SET | C34: 16.58
A35: 11009775 | B35: 1 - 2 Wochen | C35: 0
A36: 11009901 | B36: AT - ISO-MASSIV Verpackungs- und Versandkosten | C36: 399
A37: 11009902 | B37: DE - ISO-MASSIV Verpackungs- und Versandkosten | C37: 499
A38: 11009903 | B38: CH - ISO-MASSIV Verpackungs- und Versandkosten | C38: 899
A39: 11109901 | B39: AT - WUNDER-STONE Verpackungs- und Versandkosten | C39: 199
A40: 11109902 | B40: DE - WUNDER-STONE Verpackungs- und Versandkosten | C40: 299
A41: 11109903 | B41: CH - WUNDER-STONE Verpackungs- und Versandkosten | C41: 699
A42: 11202011 | B42: ECKIG - ISO MASSIV PS 40 - BASISSET 4 - 900 x 400 x 150 cm - ohne Technik | C42: 2624.17
A43: 11202015 | B43: ECKIG - ISO MASSIV PS 40 - BASISSET 5 - 1000 x 500 x 150 cm - ohne Technik | C43: 3124.17
A44: 11202030 | B44: ECKIG - ISO MASSIV PS 40 - BASISSET 1 - 600 x 300 x 150 cm - ohne Technik | C44: 1874.17
A45: 11202035 | B45: ECKIG - ISO MASSIV PS 40 - BASISSET 2 - 700 x 350 x 150 cm- ohne Technik | C45: 2165.83
A46: 11202050 | B46: ECKIG - ISO MASSIV PS 40 - BASISSET 3 - 800 x 400 x 150 cm - ohne Technik | C46: 2457.5
A47: 11203050 | B47: HALBOVAL - ISO MASSIV BASISSET 1 - 600 x 300 x 150 cm - ohne Technik | C47: 2040.83
A48: 11203060 | B48: HALBOVAL - ISO MASSIV BASISSET 2 - 700 x 350 x 150 cm - ohne Technik | C48: 2332.5
A49: 11203070 | B49: HALBOVAL - ISO MASSIV BASISSET 3 - 800 x 400 x 150 cm - ohne Technik | C49: 2624.17
A50: 11203080 | B50: HALBOVAL - ISO MASSIV BASISSET 4 - 900 x 450 x 150 cm - ohne Technik | C50: 2957.5
A51: 11203090 | B51: HALBOVAL - ISO MASSIV BASISSET 5 - 1000 x 500 x 150 cm - ohne Technik | C51: 3332.5
A52: 11204001 | B52: POOL-SET-1-ECKIG-400x250x150-FOLIENSACK-Leiter | C52: 6162.53
A53: 11204002 | B53: POOL-SET-2-ECKIG-400x250x150-FOLIENSACK-Fertigtreppe 200cm | C53: 3982.41
A54: 11204003 | B54: POOL-SET-3-ECKIG-400x250x150-FOLIENSACK-Eck - Einstelltreppe | C54: 4425.65
A55: 11204004 | B55: POOL-SET-4-ECKIG-400x250x150-GEWEBEFOLIE | C55: 5218.92
A56: 11204005 | B56: POOL-SET-5-ECKIG-400x250x150-GEWEBEFOLIE-R100 - 200cm breit | C56: 5552.16
A57: 11204006 | B57: POOL-SET-6-ECKIG-500x300x150-FOLIENSACK-Leiter | C57: 3856.41
A58: 11204007 | B58: POOL-SET-7-ECKIG-500x300x150-FOLIENSACK-Fertigtreppe 200cm | C58: 4655.48
A59: 11204008 | B59: POOL-SET-8-ECKIG-500x300x150-FOLIENSACK-Eck - Einstelltreppe | C59: 5098.72
A60: 11204009 | B60: POOL-SET-9-ECKIG-500x300x150-GEWEBEFOLIE | C60: 5731.16
A61: 11204010 | B61: POOL-SET-10-ECKIG-500x300x150-GEWEBEFOLIE--R100 - 200cm breit | C61: 6064.4
A62: 11204011 | B62: POOL-SET-11-ECKIG-600x300x150-FOLIENSACK-Leiter | C62: 3685.71
A63: 11204012 | B63: POOL-SET-12-ECKIG-600x300x150-FOLIENSACK-Fertigtreppe 200cm | C63: 4489.9
A64: 11204013 | B64: POOL-SET-13-ECKIG-600x300x150-FOLIENSACK-Eck - Einstelltreppe | C64: 4933.14
A65: 11204014 | B65: POOL-SET-14-ECKIG-600x300x150-GEWEBEFOLIE | C65: 5847.16
A66: 11204015 | B66: POOL-SET-15-ECKIG-600x300x150-GEWEBEFOLIE--R100 - 200cm breit | C66: 6190.4
A67: 11204016 | B67: POOL-SET-16-ECKIG-600x350x150-FOLIENSACK-Leiter | C67: 4363.75
A68: 11204017 | B68: POOL-SET-17-ECKIG-600x350x150-FOLIENSACK-Fertigtreppe 250cm | C68: 5328.78
A69: 11204018 | B69: POOL-SET-18-ECKIG-600x350x150-FOLIENSACK-Eck - Einstelltreppe | C69: 5721.75
A70: 11204019 | B70: POOL-SET-19-ECKIG-600x350x150-GEWEBEFOLIE | C70: 6454.74
A71: 11204020 | B71: POOL-SET-20-ECKIG-600x350x150-GEWEBEFOLIE--R125 - 250cm breit | C71: 6832.8
A72: 11204021 | B72: POOL-SET-21-ECKIG-700x350x150-FOLIENSACK-Leiter | C72: 4123.92
A73: 11204022 | B73: POOL-SET-22-ECKIG-700x350x150-FOLIENSACK-Fertigtreppe 250cm | C73: 5088.95
A74: 11204023 | B74: POOL-SET-23-ECKIG-700x350x150-FOLIENSACK-Eck - Einstelltreppe | C74: 5481.92
A75: 11204024 | B75: POOL-SET-24-ECKIG-700x350x150-GEWEBEFOLIE | C75: 6910.74
A76: 11204025 | B76: POOL-SET-25-ECKIG-700x350x150-GEWEBEFOLIE--R125 - 250cm breit | C76: 7288.8
A77: 11204026 | B77: POOL-SET-26-ECKIG-700x400x150-FOLIENSACK-Leiter | C77: 4871.75
A78: 11204027 | B78: POOL-SET-27-ECKIG-700x400x150-FOLIENSACK-Fertigtreppe 300cm | C78: 6129.56
A79: 11204028 | B79: POOL-SET-28-ECKIG-700x400x150-FOLIENSACK-Eck - Einstelltreppe | C79: 6229.75
A80: 11204029 | B80: POOL-SET-29-ECKIG-700x400x150-GEWEBEFOLIE | C80: 7363.65
A81: 11204030 | B81: POOL-SET-30-ECKIG-700x400x150-GEWEBEFOLIE--R150 - 300cm breit | C81: 7966.53
A82: 11204031 | B82: POOL-SET-31-ECKIG-800x400x150-FOLIENSACK-Leiter | C82: 4549.58
A83: 11204032 | B83: POOL-SET-32-ECKIG-800x400x150-FOLIENSACK-Fertigtreppe 300cm | C83: 5807.39
A84: 11204033 | B84: POOL-SET-33-ECKIG-800x400x150-FOLIENSACK-Eck - Einstelltreppe | C84: 5907.58
A85: 11204034 | B85: POOL-SET-34-ECKIG-800x400x150-GEWEBEFOLIE | C85: 7874.65
A86: 11204035 | B86: POOL-SET-35-ECKIG-800x400x150-GEWEBEFOLIE--R150 - 300cm breit | C86: 8477.53
A87: 11204036 | B87: POOL-SET-36-ECKIG-900x400x150-FOLIENSACK-Leiter | C87: 5145.63
A88: 11204037 | B88: POOL-SET-37-ECKIG-900x400x150-FOLIENSACK-Fertigtreppe 300cm | C88: 6403.44
A89: 11204038 | B89: POOL-SET-38-ECKIG-900x400x150-FOLIENSACK-Eck - Einstelltreppe | C89: 6503.63
A90: 11204039 | B90: POOL-SET-39-ECKIG-900x400x150-GEWEBEFOLIE | C90: 8385.65
A91: 11204040 | B91: POOL-SET-40-ECKIG-900x400x150-GEWEBEFOLIE--R150 - 300cm breit | C91: 8988.53
A92: 11204041 | B92: POOL-SET-41-ECKIG-1000x500x150-FOLIENSACK-Leiter | C92: 6046.08
A93: 11204042 | B93: POOL-SET-42-ECKIG-1000x500x150-FOLIENSACK-Fertigtreppe 300cm | C93: 7303.89
A94: 11204043 | B94: POOL-SET-43-ECKIG-1000x500x150-FOLIENSACK-Eck - Einstelltreppe | C94: 7404.08
A95: 11204044 | B95: POOL-SET-44-ECKIG-1000x500x150-GEWEBEFOLIE | C95: 10196.68
A96: 11204045 | B96: POOL-SET-45-ECKIG-1000x500x150-GEWEBEFOLIE--R150 - 300cm breit | C96: 10789.87
A97: 11204046 | B97: POOL-SET-46-OVAL-600x300x150-FOLIENSACK-Leiter | C97: 4110.38
A98: 11204047 | B98: POOL-SET-47-OVAL-600x300x150-FOLIENSACK-Fertigtreppe 200cm | C98: 5009.82
A99: 11204048 | B99: POOL-SET-48-OVAL-600x300x150-GEWEBEFOLIE | C99: 6118.7
A100: 11204049 | B100: POOL-SET-49-OVAL-600x300x150-GEWEBEFOLIE--R100 - 200cm breit | C100: 6436.14
A101: 11204050 | B101: POOL-SET-50-OVAL-700x350x150-FOLIENSACK-Leiter | C101: 4566.8
A102: 11204051 | B102: POOL-SET-51-OVAL-700x350x150-FOLIENSACK-Fertigtreppe 250cm | C102: 5516.51
A103: 11204052 | B103: POOL-SET-52-OVAL-700x350x150-GEWEBEFOLIE | C103: 6773.51
A104: 11204053 | B104: POOL-SET-53-OVAL-700x350x150-GEWEBEFOLIE--R125 - 250cm breit | C104: 7135.77
A105: 11204054 | B105: POOL-SET-54-OVAL-800x400x150-FOLIENSACK-Leiter | C105: 5110.26
A106: 11204055 | B106: POOL-SET-55-OVAL-800x400x150-FOLIENSACK-Fertigtreppe 300cm | C106: 6352.74
A107: 11204056 | B107: POOL-SET-56-OVAL-800x400x150-GEWEBEFOLIE | C107: 7709.06
A108: 11204057 | B108: POOL-SET-57-OVAL-800x400x150-GEWEBEFOLIE--R150 - 300cm breit | C108: 8296.14
A109: 11204058 | B109: POOL-SET-58-OVAL-1000x500x150-FOLIENSACK-Leiter | C109: 6701.27
A110: 11204059 | B110: POOL-SET-59-OVAL-1000x500x150-FOLIENSACK-Fertigtreppe 300cm | C110: 7902.81
A111: 11204060 | B111: POOL-SET-60-OVAL-1000x500x150-GEWEBEFOLIE | C111: 9842.31
A112: 11204061 | B112: POOL-SET-61-OVAL-1000x500x150-GEWEBEFOLIE--R150 - 300cm breit | C112: 10420.17
A113: 11204062 | B113: POOL-SET-62-RUND-350x350x150-FOLIENSACK-Leiter | C113: 3350.79
A114: 11204063 | B114: POOL-SET-63-RUND-350x350x150-GEWEBEFOLIE | C114: 5475.86
A115: 11204064 | B115: POOL-SET-64-RUND-400x400x150-FOLIENSACK-Leiter | C115: 3951.07
A116: 11204065 | B116: POOL-SET-65-RUND-400x400x150-GEWEBEFOLIE | C116: 5951.74
A117: 11204066 | B117: POOL-SET-66-RUND-450x450x150-FOLIENSACK-Leiter | C117: 4190.83
A118: 11204067 | B118: POOL-SET-67-RUND-450x450x150-GEWEBEFOLIE | C118: 6177.63
A119: 11204068 | B119: POOL-SET-68-RUND-500x500x150-FOLIENSACK-Leiter | C119: 4468.44
A120: 11204069 | B120: POOL-SET-69-RUND-500x500x150-GEWEBEFOLIE | C120: 6550.27
A121: 11204070 | B121: POOL-SET-70-RUND-550x550x150-FOLIENSACK-Leiter | C121: 4885.65
A122: 11204071 | B122: POOL-SET-71-RUND-550x550x150-GEWEBEFOLIE | C122: 7257.82
A123: 11204072 | B123: POOL-SET-72-RUND-600x600x150-FOLIENSACK-Leiter | C123: 5191.39
A124: 11204073 | B124: POOL-SET-73-RUND-600x600x150-GEWEBEFOLIE | C124: 7850.46
A125: 11204074 | B125: POOL-SET-74-ECKIG-600x300x150-FOLIENSACK-Eck - Einstelltreppe--KLASIK-A | C125: 8307.72
A126: 11204075 | B126: POOL-SET-75-ECKIG-700x350x150-FOLIENSACK-Eck - Einstelltreppe--KLASIK-B | C126: 10551.27
A127: 11204076 | B127: POOL-SET-76-ECKIG-800x400x150-FOLIENSACK-Eck - Einstelltreppe--KLASIK-B | C127: 10974.74
A128: 11204077 | B128: POOL-SET-77-ECKIG-1000x500x150-FOLIENSACK-Eck - Einstelltreppe--KLASIK-C | C128: 14578.94
A129: 11204080 | B129: RUND - ISO MASSIV BASISSET 4 - 500 x1 50 cm - ohne Technik | C129: 2082.5
A130: 11204090 | B130: RUND - ISO MASSIV BASISSET 5 - 600 x 150 cm - ohne Technik | C130: 2457.5
A131: 11205025 | B131: ISO MASSIV SPARSET 500 x 250 x 150 ECKIG mit Leiter | C131: 2665.83
A132: 11205030 | B132: OVAL - ISO MASSIV BASISSET 1 - 600 x 300 x 150 cm - ohne Technik | C132: 1999.17
A133: 11205035 | B133: OVAL - ISO MASSIV BASISSET 2 - 700 x 350 x 150 cm - ohne Technik | C133: 2207.5
A134: 11205050 | B134: OVAL - ISO MASSIV BASISSET 3 - 800 x 400 x 150 cm - ohne Technik | C134: 2374.17
A135: 11206030 | B135: ISO MASSIV SPARSET 600 x 300 x 150 ECKIG mit Leiter | C135: 2832.5
A136: 11207035 | B136: ISO MASSIV SPARSET 700 x 350 x 150 ECKIG mit Leiter | C136: 3332.5
A137: 11208002 | B137: ISO MASSIV Set 02 - 600x300x150 ECKIG - mit Leiter | C137: 3165.83
A138: 11208003 | B138: ISO MASSIV Set 03 - 600x300x150 OVAL - mit Leiter | C138: 3249.17
A139: 11208005 | B139: ISO MASSIV Set 05 - 700x350x150 ECKIG - mit Leiter | C139: 3749.17
A140: 11208006 | B140: ISO MASSIV Set 06 - 700x350x150 Oval - mit Leiter | C140: 3540.83
A141: 11208007 | B141: ISO MASSIV Set 07 - 700x400x150 ECKIG - mit Leiter | C141: 3999.17
A142: 11208009 | B142: ISO MASSIV Set 09 - 800x400x150 ECKIG - mit Leiter | C142: 4082.5
A143: 11208010 | B143: ISO MASSIV Set 10 - 800x400x150 Oval - mit Leiter | C143: 3915.83
A144: 11208011 | B144: ISO MASSIV Set 11 - 900x400x150 Eckig - mit Leiter | C144: 4165.83
A145: 11208012 | B145: ISO MASSIV Set 12 - 900x400x150 Oval - mit Leiter | C145: 4249.17
A146: 11208013 | B146: ISO MASSIV Set 13 - 900x500x150 Eckig - mit Leiter | C146: 5082.5
A147: 11208014 | B147: ISO MASSIV Set 14 - 1000x500x150 Oval - mit Leiter | C147: 5332.5
A148: 11208015 | B148: ISO MASSIV Set 15 - 1000x500x150 Eckig - mit Leiter | C148: 5082.5
A149: 11208016 | B149: ISO MASSIV Set 16 - 600x300x150 Eckig - m. Römischer Polyestertreppe | C149: 4249.17
A150: 11208017 | B150: ISO MASSIV Set 17 - 700x350x150 Eckig - m. Römischer Polyestertreppe | C150: 4749.17
A151: 11208018 | B151: ISO MASSIV Set 18 - 800x400x150 Eckig - m. Römischer Polyestertreppe | C151: 5165.83
A152: 11208020 | B152: OVAL - ISO MASSIV BASISSET 4 - 900 x 400 x 150 cm - ohne Technik | C152: 2749.17
A153: 11208025 | B153: ISO MASSIV Set 25 - 600x300x150 Eckig m. Treppe und Gewebefolie | C153: 5082.5
A154: 11208026 | B154: ISO MASSIV Set 26 - 600x300x150 ECKIG m. Römischer Treppe | C154: 5332.5
A155: 11208027 | B155: ISO MASSIV Set 27 - 600x300x150 OVAL m. Römischer Polyestertreppe | C155: 4165.83
A156: 11208028 | B156: ISO MASSIV Set 28 - 700x350x150 Eckig m. Teppe und Gewebefolie | C156: 5832.5
A157: 11208029 | B157: ISO MASSIV Set 29 - 700x350x150 Eckig m. Röm. Treppe u. Gewebefolie | C157: 6249.17
A158: 11208030 | B158: ISO MASSIV Set 30 - 700x350x150 OVAL m. Römischer Polyestertreppe | C158: 4582.5
A159: 11208031 | B159: ISO MASSIV Set 31 - 800x400x150 Eckig m. Teppe u. Gewebefolie | C159: 6749.17
A160: 11208032 | B160: ISO MASSIV Set 32 - 800x400x150 Eckig m. Röm. Treppe u. Gewebefolie | C160: 7165.83
A161: 11208033 | B161: ISO MASSIV Set 33 - 800x400x150 OVAL m. Römischer Polyestertreppe | C161: 5332.5
A162: 11208034 | B162: ISO MASSIV Set 34 - 900x400x150 Eckig m. Teppe u. Gewebefolie | C162: 7165.83
A163: 11208035 | B163: ISO MASSIV Set 35 - 900x400x150 Eckig m. Röm. Treppe u. Gewebefolie | C163: 7582.5
A164: 11208036 | B164: ISO MASSIV Set 36 - 1000x400x150 Eckig m. Ecktreppe u. Gewebefolie | C164: 7582.5
A165: 11208037 | B165: ISO MASSIV Set 37 - 1000x400x150 Eckig m. Röm. Treppe u. Gewebefolie | C165: 7999.17
A166: 11208038 | B166: ISO MASSIV Set 38 - 1000x500x150 Eckig m. Teppe u. Gewebefolie | C166: 8999.17
A167: 11208039 | B167: ISO MASSIV Set 39 - 1000x500x150 Eckig m. Röm. Treppe u. Gewebefolie | C167: 9249.17
A168: 11208040 | B168: ISO MASSIV Set 40 - 600x300x150 Eckig - Gewebef.+Randst.+ Ecktreppe + Überdachung individuell | C168: 12083.33
A169: 11208041 | B169: ISO MASSIV Set 41 - 600x300x150 Röm.Trepp.-Gewebef.+Randst.+Überdachung individuell | C169: 13076.68
A170: 11208042 | B170: ISO MASSIV Set 42 - 700x350x150 Eckig - Gewebef.+Randst.+Überdachung individuell | C170: 14205
A171: 11208043 | B171: ISO MASSIV Set 43 - 700x350x150 Röm.Treppe, Gewebef.+Randst.+ Überdachung individuell | C171: 15775.83
A172: 11208044 | B172: ISO MASSIV Set 44 - 800x400x150 Eckig - Gewebef.+Randstein+ÜberdachungI individuell | C172: 16786.67
A173: 11208045 | B173: ISO MASSIV Set 45 - 800x400x150 Röm.Trepp. Gewebef.+Randst.+Überdachung individuell | C173: 18109.17
A174: 11208048 | B174: ISO MASSIV Set 48 - 700x400x150 m.Röm.Trepp - Gewebef.+ Randstein + Überdachungsbausatz einseitige Laufschiene | C174: 14746.67
A175: 11208050 | B175: ISO MASSIV SPARSET 800 x 400 x 150 ECKIG mit Leiter | C175: 3415.83
A176: 11208055 | B176: ISO MASSIV SPARSET 1200 x 250 x 150 ECKIG mit Leiter | C176: 3999.17
A177: 11208060 | B177: OVAL - ISO MASSIV BASISSET 5 - 1000 x 500 x 150 cm - ohne Technik | C177: 3332.5
A178: 11208061 | B178: ISO MASSIV Set 60 - 800x400x150 Eckig - Gewebef.+Randst.+ Überdachung am Beckenrand, Technikschacht | C178: 17050
A179: 11208063 | B179: ISO MASSIV Set 63 - 600x300x150 Eckig - Gewebef.+Randst.+ Überdachung am Beckenrand, Technikschacht | C179: 12258.33
A180: 11208065 | B180: ISO MASSIV Set 65 - 800x400x150 Eckig - m. ECKIGER Polyestertreppe KANTO | C180: 6749.17
A181: 11208066 | B181: ISO MASSIV Set 66 - 800x400x150 Eckig - m. Ecktreppe Ravenna / Polyestertreppe | C181: 6915.83
A182: 11208067 | B182: ISO MASSIV Set 67 - 1000x400x150 Eckig - m. Ecktreppe Ravenna / Polyestertreppe | C182: 7999.17
A183: 11208070 | B183: ISO MASSIV Set 50 - 600x300x150 Röm.Polyestertreppe + Randstein + Überdachung individuell | C183: 11930.83
A184: 11208074 | B184: ISO MASSIV Set 51 - 700x350x150 Röm.Polyestertreppe + Randstein + Überdachung individuell | C184: 14293.33
A185: 11208075 | B185: ISO MASSIV Set 61 - 700x350x150 Röm.Polyestertreppe +Randstein + Überdachung am Beckenrand, Technikschacht | C185: 14423.33
A186: 11208080 | B186: ISO MASSIV Set 52 - 800x400x150 Röm.Polyestertreppe + Randstein + Überdachung individuell | C186: 16366.67
A187: 11208083 | B187: ISO MASSIV Set 83 - HIGH LEVEL POOL 600x300x150 Eckig m. Treppe (Ecke) + Gewebefolie + Randsteine | C187: 9165.83
A188: 11208084 | B188: ISO MASSIV Set 84 - HIGH LEVEL POOL 700x350x150 Eckig m. Treppe (Ecke) + Gewebefolie + Randsteine | C188: 10499.17
A189: 11208085 | B189: ISO MASSIV Set 49 - 700x400x150 Röm.Polyestertreppe + Randstein + Überdachungsbausatz einseitige Laufschiene | C189: 13201.67
A190: 11208086 | B190: ISO MASSIV Set 86 - HIGH LEVEL POOL 600x300x150 Eckig m. Treppe (Ecke) + Gewebefolie + Überdachung SELEKT (schienenlos) | C190: 15824.17
A191: 11208087 | B191: ISO MASSIV Set 87 - HIGH LEVEL POOL 700x350x150 Eckig m. Treppe (Ecke) + Gewebefolie + Randsteine + Überdachung SELEKT (schienenlos) | C191: 18213.33
A192: 11208088 | B192: ISO MASSIV Set 88 - HIGH LEVEL POOL 700x350x150 Eckig m. Treppe (Ecke) + Gewebefolie + Randsteine + Überdachung Selekt (schienenlos) | C192: 20600
A193: 11208090 | B193: ISO MASSIV Set 80 - 600x300x150 Eckig m. griechischer Treppe (eckig) + Gewebefolie | C193: 5165.83
A194: 11208092 | B194: ISO MASSIV Set 81 - 700x350x150 Eckig m. griechischer Treppe (eckig) + Gewebefolie | C194: 6124.17
A195: 11208094 | B195: ISO MASSIV Set 82 - 800x400x150 Eckig m. griechischer Treppe (eckig) + Gewebefolie | C195: 7082.5
A196: 11208101 | B196: ISO MASSIV Set 101 - RUNDBECKEN 350x150 - mit Leiter | C196: 2915.83
A197: 11208102 | B197: ISO MASSIV Set 102 - RUNDBECKEN 400x150 - mit Leiter | C197: 3082.5
A198: 11208103 | B198: ISO MASSIV Set 103 - RUNDBECKEN 450x150 - mit Leiter | C198: 3332.5
A199: 11208104 | B199: ISO MASSIV Set 104 - RUNDBECKEN 500x150 - mit Leiter | C199: 3332.5
A200: 11208105 | B200: ISO MASSIV Set 105 - RUNDBECKEN 600x150 - mit Leiter | C200: 3874.17
... 7205 more rows
